fUSD/lending_fUSD_20260512
["ID","MTS","AMOUNT","RATE_DAILY","PERIOD"]
[422054830,1778531435000,-500.0,0.00029999,2]
[422054828,1778531435000,-500.0,0.00029999,2]
[422054833,1778531435000,-500.0,0.00029999,2]
[422054835,1778531435000,-500.0,0.00029999,2]
[422054839,1778531435000,-500.0,0.00029999,2]
[422054829,1778531435000,-500.0,0.00029999,2]
[422054823,1778531435000,-500.0,0.00029999,2]
[422054837,1778531435000,-500.0,0.00029999,2]
[422054850,1778531435000,-500.0,0.00029999,2]
[422054836,1778531435000,-500.0,0.00029999,2]
[422054843,1778531435000,-500.0,0.00029999,2]
[422054842,1778531435000,-500.0,0.00029999,2]
[422054852,1778531435000,-465.0,0.00029999,2]
[422054844,1778531435000,-500.0,0.00029999,2]
[422054840,1778531435000,-500.0,0.00029999,2]
[422054851,1778531435000,-500.0,0.00029999,2]
[422054838,1778531435000,-500.0,0.00029999,2]
[422054841,1778531435000,-500.0,0.00029999,2]
[422054883,1778531438000,-165.24,0.00025205,7]
[422054882,1778531438000,-165.24,0.00024658,2]
[422054884,1778531438000,-165.24,0.00025753,30]
[422054885,1778531438000,-165.24,0.00026301,2]
[422054897,1778531438000,-306.0,0.0003003,30]
[422054886,1778531438000,-165.24,0.00026513,2]
[422054887,1778531438000,-165.24,0.00026533,7]
[422054888,1778531438000,-165.24,0.00026554,30]
[422054890,1778531438000,-165.24,0.00026849,7]
[422054891,1778531438000,-1535.24765648,0.00029216,2]
[422054896,1778531438000,-926.0,0.0003003,30]
[422054889,1778531438000,-165.27,0.00026575,2]
[422054901,1778531438000,-370.99253896,0.0003003,2]
[422054900,1778531438000,-165.29,0.00027397,30]
[422054898,1778531438000,-16343.94393261,0.0003003,2]
[422054892,1778531438000,-1462.01,0.0002979,10]
[422054894,1778531438000,-3643.94226334,0.00029967,2]
[422054895,1778531438000,-559.0,0.0003003,30]
[422054893,1778531438000,-193.71766429,0.00029899,2]
[422054899,1778531438000,-488.82312227,0.0003003,2]
[422054953,1778531449000,-3134.75153409,0.00024176,2]
[422054950,1778531449000,-165.01041431,0.00019,2]
[422054951,1778531449000,-165.01041431,0.000192,2]
[422054952,1778531449000,-165.01041431,0.000194,2]
[422054958,1778531677000,780.0,0.00027397,120]
[422054959,1778531791000,455.73109677,0.00027397,120]
[422054960,1778531846000,2500.0,0.00027397,120]
[422054961,1778531847000,2500.0,0.000271,120]
[422054963,1778531870000,1000.0,0.000271,120]
[422054962,1778531870000,1000.0,0.00027397,120]
[422054964,1778531895000,1275.35,0.00022,115]
[422054965,1778531895000,927.69,0.00021,115]
[422054966,1778531934000,1000.0,0.00027397,120]
[422054967,1778531934000,1000.0,0.000271,120]
[422054968,1778531988000,188.72,0.00025342,120]
[422054970,1778531989000,188.72,0.00026493,120]
[422054969,1778531989000,188.72,0.00025918,120]
[422054971,1778531989000,188.72,0.00027068,120]
[422054972,1778532022000,500.0,0.00027397,120]
[422054973,1778532027000,581.33,0.00026778,120]
[422054974,1778532199000,173.27,0.00022,115]
[422054975,1778532409000,254.528069,0.00026947,120]
[422054976,1778532426000,206.605159,0.00026888,120]
[422054977,1778532461000,179.0,0.00027261,120]
[422054978,1778532499000,621.930452,0.00026849,120]
[422054980,1778532507000,1106.17,0.00023,120]
[422054983,1778532507000,400.77,0.00021,120]
[422054981,1778532507000,913.99,0.00022,120]
[422054982,1778532507000,621.77,0.00021,120]
[422054979,1778532507000,1314.26,0.000271,120]
[422054984,1778532523000,1258.056883,0.00026558,120]
[422054985,1778532582000,251.07779,0.00026632,120]
[422054986,1778532586000,306.081718,0.00026632,120]
[422054987,1778532610000,293.236789,0.00026632,120]
[422055022,1778532632000,-500.0,0.0001741,2]
[422055034,1778532632000,-500.0,0.0001741,2]
[422055026,1778532632000,-500.0,0.0001741,2]
[422055025,1778532632000,-151.0,0.0001741,2]
[422055028,1778532632000,-500.0,0.0001741,2]
[422055027,1778532632000,-151.0,0.0001741,2]
[422055030,1778532632000,-500.0,0.0001741,2]
[422055049,1778532632000,-500.0,0.0001741,2]
[422055032,1778532632000,-151.0,0.0001741,2]
[422055029,1778532632000,-151.0,0.0001741,2]
[422055036,1778532632000,-151.0,0.0001741,2]
[422055050,1778532632000,-151.0,0.0001741,2]
[422055054,1778532632000,-500.0,0.0001741,2]
[422055047,1778532632000,-151.0,0.0001741,2]
[422055042,1778532632000,-500.0,0.0001741,2]
[422055043,1778532632000,-151.0,0.0001741,2]
[422055044,1778532632000,-500.0,0.0001741,2]
[422055045,1778532632000,-500.0,0.0001741,2]
[422055040,1778532632000,-151.0,0.0001741,2]
[422055048,1778532632000,-500.0,0.0001741,2]
[422055038,1778532632000,-500.0,0.0001741,2]
[422055024,1778532632000,-500.0,0.0001741,2]
[422055052,1778532632000,-500.0,0.0001741,2]
[422055053,1778532632000,-500.0,0.0001741,2]
[422055055,1778532632000,-500.0,0.0001741,2]
[422055056,1778532632000,-500.0,0.0001741,2]
[422055051,1778532632000,-500.0,0.0001741,2]
[422055023,1778532632000,-151.0,0.0001741,2]
[422055011,1778532632000,-300.0,0.00016,2]
[422055018,1778532632000,-500.0,0.0001741,2]
[422054993,1778532632000,-348.27,0.00012318,2]
[422054994,1778532632000,-150.0,0.00012523,2]
[422054997,1778532632000,-250.0,0.0001355,2]
[422054995,1778532632000,-198.0,0.00012647,2]
[422054996,1778532632000,-348.27,0.00012941,2]
[422054998,1778532632000,-250.0,0.0001355,2]
[422055000,1778532632000,-3985.70211009,0.0001355,2]
[422054999,1778532632000,-349.26816308,0.0001355,2]
[422055002,1778532632000,-300.0,0.00013799,2]
[422055001,1778532632000,-348.27,0.00013564,2]
[422055008,1778532632000,-348.27,0.0001481,2]
[422055003,1778532632000,-27498.07509792,0.000138,2]
[422055021,1778532632000,-151.0,0.0001741,2]
[422055005,1778532632000,-214.82098671,0.00014129,2]
[422055006,1778532632000,-348.27,0.00014187,2]
[422055009,1778532632000,-420.0,0.00015121,2]
[422055007,1778532632000,-208.15897961,0.00014725,2]
[422055010,1778532632000,-348.27,0.00015433,2]
[422055012,1778532632000,-348.27,0.00016056,2]
[422055017,1778532632000,-200.0,0.0001741,2]
[422055016,1778532632000,-348.27,0.00017301,2]
[422055015,1778532632000,-348.27,0.00016678,2]
[422055020,1778532632000,-500.0,0.0001741,2]
[422055013,1778532632000,-872.7,0.00016438,2]
[422055014,1778532632000,-587.0,0.00016569,2]
[422055019,1778532632000,-151.0,0.0001741,2]
[422055004,1778532632000,-250.0,0.00014,2]
[422055064,1778532632000,-823.0,0.00018156,2]
[422055061,1778532632000,-500.0,0.0001741,2]
[422055063,1778532632000,-206.96783375,0.00017958,2]
[422055084,1778532632000,-16585.0,0.000221,2]
[422055092,1778532632000,-348.27,0.00022908,2]
[422055094,1778532632000,-1000.0,0.00023,30]
[422055102,1778532632000,-299.99,0.00023368,7]
[422055093,1778532632000,-1067.01659077,0.00023,30]
[422055096,1778532632000,-355.0,0.00023,2]
[422055098,1778532632000,-300.0,0.00023,30]
[422055097,1778532632000,-906.0,0.00023,2]
[422055103,1778532632000,-150.99,0.00023368,2]
[422055095,1778532632000,-494.28709046,0.00023,30]
[422055099,1778532632000,-500.0,0.00023054,2]
[422055101,1778532632000,-152.0,0.00023133,2]
[422055087,1778532632000,-872.7,0.00022353,2]
[422055100,1778532632000,-152.0,0.00023133,2]
[422055107,1778532632000,-581.33,0.00023802,2]
[422055105,1778532632000,-5530.0,0.000234,5]
[422055106,1778532632000,-348.27,0.0002353,2]
[422055115,1778532632000,-150.0,0.00024109,2]
[422055109,1778532632000,-2258.0,0.00023888,2]
[422055113,1778532632000,-150.0,0.00024035,2]
[422055110,1778532632000,-355.0,0.00024,2]
[422055111,1778532632000,-906.0,0.00024,2]
[422055112,1778532632000,-163.73,0.00024035,2]
[422055114,1778532632000,-350.0,0.00024076,2]
[422055116,1778532632000,-348.27,0.00024153,2]
[422055062,1778532632000,-348.27,0.00017924,2]
[422055104,1778532632000,-708.05,0.00023368,2]
[422055085,1778532632000,-348.27,0.00022285,2]
[422055108,1778532632000,-5000.0,0.00023878,2]
[422055088,1778532632000,-200.0,0.00022387,2]
[422055082,1778532632000,-355.0,0.00022,2]
[422055059,1778532632000,-500.0,0.0001741,2]
[422055058,1778532632000,-500.0,0.0001741,2]
[422055060,1778532632000,-500.0,0.0001741,2]
[422055057,1778532632000,-500.0,0.0001741,2]
[422055066,1778532632000,-348.27,0.00018547,2]
[422055068,1778532632000,-348.27,0.00019793,2]
[422055067,1778532632000,-348.27,0.0001917,2]
[422055075,1778532632000,-906.0,0.00021,2]
[422055076,1778532632000,-348.27,0.00021039,2]
[422055071,1778532632000,-906.0,0.0002,2]
[422055069,1778532632000,-1152.0,0.00019895,2]
[422055070,1778532632000,-355.0,0.0002,2]
[422055065,1778532632000,-872.7,0.0001841,2]
[422055072,1778532632000,-872.7,0.00020381,2]
[422055081,1778532632000,-209.16,0.00021935,2]
[422055077,1778532632000,-348.27,0.00021662,2]
[422055083,1778532632000,-906.0,0.00022,2]
[422055089,1778532632000,-5530.0,0.000227,3]
[422055091,1778532632000,-7360.3802,0.000229,2]
[422055090,1778532632000,-2797.52572278,0.00022807,2]
[422055086,1778532632000,-150.0,0.00022327,2]
[422055079,1778532632000,-4055.4,0.00021739,2]
[422055074,1778532632000,-355.0,0.00021,2]
[422055078,1778532632000,-2338.02,0.00021735,2]
[422055073,1778532632000,-348.27,0.00020416,2]
[422055080,1778532632000,-1613.0,0.000218,2]
[422055140,1778532633000,-151.0,0.00025478,2]
[422055144,1778532633000,-198.29,0.00026243,2]
[422055137,1778532633000,-178.46,0.00025342,7]
[422055142,1778532633000,-178.46,0.00026027,30]
[422055141,1778532633000,-507.0,0.00025986,3]
[422055143,1778532633000,-729.0,0.00026176,2]
[422055155,1778532633000,-150.0,0.00027353,4]
[422055156,1778532633000,-178.48,0.00027397,7]
[422055147,1778532633000,-198.953117,0.00026558,14]
[422055152,1778532633000,-150.0,0.00026926,4]
[422055148,1778532633000,-198.29,0.00026575,30]
[422055149,1778532633000,-178.46,0.00026712,2]
[422055153,1778532633000,-150.0,0.00026926,4]
[422055150,1778532633000,-150.0,0.00026849,2]
[422055154,1778532633000,-306.081719,0.00027244,14]
[422055151,1778532633000,-251.07779,0.00026888,14]
[422055139,1778532633000,-151.0,0.00025423,2]
[422055157,1778532633000,-1500.0,0.00027397,2]
[422055146,1778532633000,-198.29,0.00026409,7]
[422055138,1778532633000,-151.0,0.00025368,2]
[422055122,1778532633000,-195.8,0.00024658,2]
[422055135,1778532633000,-151.0,0.00025313,2]
[422055168,1778532633000,-2000.0,0.00028,2]
[422055118,1778532633000,-150.0,0.00024176,2]
[422055117,1778532633000,-612.385,0.00024176,2]
[422055121,1778532633000,-177.59,0.00024618,2]
[422055119,1778532633000,-872.7,0.00024324,2]
[422055120,1778532633000,-507.0,0.00024397,2]
[422055124,1778532633000,-175.75,0.00024716,2]
[422055123,1778532633000,-178.46,0.00024658,2]
[422055136,1778532633000,-228.02704618,0.00025313,2]
[422055125,1778532633000,-367.0,0.00025,2]
[422055128,1778532633000,-152.0,0.00025313,2]
[422055127,1778532633000,-1090.87,0.0002517,2]
[422055129,1778532633000,-152.0,0.00025313,2]
[422055132,1778532633000,-152.0,0.00025313,2]
[422055130,1778532633000,-152.0,0.00025313,2]
[422055131,1778532633000,-152.0,0.00025313,2]
[422055133,1778532633000,-152.0,0.00025313,2]
[422055134,1778532633000,-152.0,0.00025313,2]
[422055126,1778532633000,-916.0,0.00025,2]
[422055162,1778532633000,-840.0,0.00027437,10]
[422055145,1778532633000,-872.7,0.00026296,2]
[422055161,1778532633000,-688.0,0.00027437,10]
[422055183,1778532633000,-3602.16549041,0.00028614,2]
[422055182,1778532633000,-13642.05156247,0.00028614,2]
[422055186,1778532633000,-193.4724563,0.00028643,30]
[422055187,1778532633000,-2447.0,0.00028906,2]
[422055188,1778532633000,-150.0,0.00029063,7]
[422055189,1778532633000,-500.0,0.00029072,2]
[422055191,1778532633000,-507.0,0.00029163,6]
[422055194,1778532633000,-2060.50484616,0.00029216,2]
[422055185,1778532633000,-150.0,0.00028636,7]
[422055192,1778532633000,-404.375426,0.00029214,14]
[422055195,1778532633000,-1211.21138331,0.00029386,2]
[422055200,1778532633000,-463.62306881,0.00029486,2]
[422055196,1778532633000,-2089.18252592,0.00029386,2]
[422055197,1778532633000,-2374.8359299,0.00029486,2]
[422055199,1778532633000,-32688.1909581,0.00029486,2]
[422055198,1778532633000,-13253.0636001,0.00029486,2]
[422055202,1778532633000,170.04,0.00023,120]
[422055159,1778532633000,-1462.01,0.00027397,10]
[422055193,1778532633000,-150.0,0.00029216,2]
[422055184,1778532633000,-65385.23690544,0.00028614,2]
[422055190,1778532633000,-1000.0,0.00029099,15]
[422055181,1778532633000,-21297.95668968,0.00028614,2]
[422055160,1778532633000,-1218.34,0.00027397,10]
[422055180,1778532633000,-485.728556,0.00028614,2]
[422055163,1778532633000,-757.849,0.00027437,16]
[422055165,1778532633000,-507.0,0.00027575,5]
[422055167,1778532633000,-500.0,0.000278,7]
[422055164,1778532633000,-453.0,0.00027437,10]
[422055166,1778532633000,-150.0,0.00027781,7]
[422055170,1778532633000,-254.52807,0.00028042,14]
[422055169,1778532633000,-195.491192,0.00028042,14]
[422055179,1778532633000,-152.0,0.00028589,30]
[422055158,1778532633000,-195.8,0.00027397,2]
[422055172,1778532633000,-150.0,0.00028192,2]
[422055175,1778532633000,-152.0,0.00028387,3]
[422055174,1778532633000,-872.7,0.00028267,2]
[422055201,1778532633000,218.47,0.000271,120]
[422055178,1778532633000,-152.0,0.00028589,30]
[422055176,1778532633000,-500.0,0.00028486,60]
[422055171,1778532633000,-206.60516,0.00028042,14]
[422055177,1778532633000,-2004.3167,0.00028514,2]
[422055173,1778532633000,-150.0,0.00028208,7]
[422055205,1778532638000,-1267.83,0.00024345,2]
[422055204,1778532638000,-1267.83,0.0002164,2]
[422055206,1778532638000,-1267.83,0.0002705,2]
[422055207,1778532638000,-1373.66989744,0.00029216,2]
[422055210,1778532638000,-18538.92271079,0.00029486,2]
[422055209,1778532638000,-1015.29,0.00029476,10]
[422055211,1778532638000,-1531.9612442,0.00029486,2]
[422055212,1778532638000,-557.87133531,0.00029486,2]
[422055208,1778532638000,-193.71766429,0.00029386,2]
[422055241,1778532640000,-452.0,0.00029486,10]
[422055242,1778532640000,-150.0,0.0002949,7]
[422055243,1778532640000,-161.859,0.00029582,120]
[422055236,1778532640000,-915.77993162,0.00029216,2]
[422055244,1778532640000,-150.0,0.00029601,2]
[422055245,1778532640000,-199.906216,0.00029682,14]
[422055237,1778532640000,-1403.06964831,0.00029386,60]
[422055240,1778532640000,-353.0,0.00029486,10]
[422055239,1778532640000,-3466.9688778,0.00029486,2]
[422055247,1778532640000,-1002.22900534,0.00029722,2]
[422055238,1778532640000,-97648.90048209,0.00029486,2]
[422055249,1778532640000,-581.33,0.00029753,120]
[422055248,1778532640000,-1011.53758738,0.00029722,2]
[422055253,1778532640000,-4000.0,0.000298,10]
[422055246,1778532640000,-2000.0,0.000297,10]
[422055259,1778532640000,-157.99275053,0.00029867,2]
[422055255,1778532640000,-159.81031284,0.0002982,2]
[422055257,1778532640000,-5000.0,0.0002983,2]
[422055261,1778532640000,-6100.0,0.000299,10]
[422055264,1778532640000,-500.0,0.00029919,120]
[422055263,1778532640000,-150.0,0.00029918,7]
[422055251,1778532640000,-1267.83,0.00029755,2]
[422055312,1778532641000,-500.0,0.00029999,2]
[422055309,1778532641000,-500.0,0.00029999,2]
[422055308,1778532641000,-500.0,0.00029999,2]
[422055304,1778532641000,-500.0,0.00029999,2]
[422055302,1778532641000,-500.0,0.00029999,2]
[422055293,1778532641000,-591.46802026,0.00029999,2]
[422055297,1778532641000,-500.0,0.00029999,2]
[422055295,1778532641000,-500.0,0.00029999,2]
[422055307,1778532641000,-500.0,0.00029999,2]
[422055294,1778532641000,-409.70574832,0.00029999,2]
[422055296,1778532641000,-500.0,0.00029999,2]
[422055310,1778532641000,-500.0,0.00029999,2]
[422055313,1778532641000,-461.83144974,0.00029999,2]
[422055305,1778532641000,-641.94422727,0.00029999,2]
[422055311,1778532641000,-500.0,0.00029999,2]
[422055303,1778532641000,-500.0,0.00029999,2]
[422055301,1778532641000,-500.0,0.00029999,2]
[422055315,1778532641000,-500.0,0.00029999,2]
[422055325,1778532641000,-152.0,0.00030099,7]
[422055326,1778532641000,-152.0,0.00030099,7]
[422055314,1778532641000,-500.0,0.00029999,2]
[422055318,1778532641000,-500.0,0.00029999,2]
[422055316,1778532641000,-500.0,0.00029999,2]
[422055319,1778532641000,-500.0,0.00029999,2]
[422055320,1778532641000,-500.0,0.00029999,2]
[422055306,1778532641000,-500.0,0.00029999,2]
[422055300,1778532641000,-500.0,0.00029999,2]
[422055284,1778532641000,-529315.3276,0.0002993,2]
[422055291,1778532641000,-1619.68,0.00029993,2]
[422055266,1778532641000,-500.0,0.00029919,120]
[422055268,1778532641000,-500.0,0.00029919,120]
[422055279,1778532641000,-500.0,0.00029929,120]
[422055267,1778532641000,-500.0,0.00029919,120]
[422055278,1778532641000,-500.0,0.00029929,120]
[422055270,1778532641000,-500.0,0.00029919,120]
[422055276,1778532641000,-182.89353303,0.0002992,2]
[422055272,1778532641000,-500.0,0.00029919,120]
[422055273,1778532641000,-500.0,0.00029919,120]
[422055277,1778532641000,-500.0,0.00029929,120]
[422055269,1778532641000,-500.0,0.00029919,120]
[422055271,1778532641000,-500.0,0.00029919,120]
[422055299,1778532641000,-500.0,0.00029999,2]
[422055275,1778532641000,-552407.0879,0.0002992,2]
[422055281,1778532641000,-151.0,0.0002993,7]
[422055280,1778532641000,-500.0,0.00029929,120]
[422055282,1778532641000,-151.0,0.0002993,7]
[422055283,1778532641000,-9113.5618,0.0002993,2]
[422055285,1778532641000,-500.0,0.00029973,5]
[422055288,1778532641000,-500.0,0.00029973,5]
[422055290,1778532641000,-1619.68,0.00029993,2]
[422055289,1778532641000,-715.0,0.00029983,5]
[422055287,1778532641000,-500.0,0.00029973,5]
[422055286,1778532641000,-500.0,0.00029973,5]
[422055292,1778532641000,-470.78165662,0.00029999,2]
[422055298,1778532641000,-500.0,0.00029999,2]
[422055274,1778532641000,-150.0,0.00029919,2]
[422055324,1778532641000,-21881.97513705,0.0003,5]
[422055317,1778532641000,-500.0,0.00029999,2]
[422055321,1778532641000,-500.0,0.00029999,2]
[422055353,1778532641000,-191.0,0.00030411,120]
[422055355,1778532641000,-505.30995184,0.00030521,5]
[422055357,1778532641000,-502.45777208,0.00030521,5]
[422055360,1778532641000,-157.0,0.00030523,30]
[422055356,1778532641000,-504.69083246,0.00030521,5]
[422055362,1778532641000,-906.0,0.00030523,30]
[422055361,1778532641000,-355.0,0.00030523,30]
[422055372,1778532641000,-1211.21138325,0.00031031,2]
[422055364,1778532641000,-154.0,0.00030523,30]
[422055363,1778532641000,-155.0,0.00030523,30]
[422055366,1778532641000,-151.0,0.00030523,30]
[422055369,1778532641000,-507.0,0.00030752,8]
[422055350,1778532641000,-2581.0,0.000303,30]
[422055371,1778532641000,-10000.0,0.00031,2]
[422055370,1778532641000,-10000.0,0.00030987,2]
[422055365,1778532641000,-160.0,0.00030523,30]
[422055374,1778532641000,-1000.0,0.0003104,2]
[422055373,1778532641000,-1000.0,0.0003104,2]
[422055376,1778532641000,-1000.0,0.00031047,2]
[422055375,1778532641000,-1903.60607076,0.0003104,2]
[422055378,1778532641000,-1000.0,0.00031047,2]
[422055380,1778532641000,-150.0,0.00031081,2]
[422055377,1778532641000,-1000.0,0.00031047,2]
[422055381,1778532641000,-200.0,0.00031096,2]
[422055379,1778532641000,-1137.06944736,0.00031047,2]
[422055323,1778532641000,-500.0,0.00029999,2]
[422055367,1778532641000,-263.79705615,0.00030545,7]
[422055358,1778532641000,-154.0,0.00030521,30]
[422055368,1778532641000,-2089.1825259,0.00030554,2]
[422055352,1778532641000,-152.0,0.00030339,4]
[422055351,1778532641000,-152.0,0.00030323,7]
[422055327,1778532641000,-150.0,0.0003012,2]
[422055328,1778532641000,-946.44512728,0.0003012,2]
[422055329,1778532641000,-150.0,0.0003012,2]
[422055330,1778532641000,-263.26788083,0.0003012,2]
[422055332,1778532641000,-258907.81313305,0.0003013,7]
[422055337,1778532641000,-1000.0,0.0003013,11]
[422055335,1778532641000,-1000.0,0.0003013,11]
[422055331,1778532641000,-526.0,0.0003013,5]
[422055336,1778532641000,-1000.0,0.0003013,11]
[422055334,1778532641000,-1000.0,0.0003013,11]
[422055333,1778532641000,-500.0,0.0003013,60]
[422055339,1778532641000,-1000.0,0.0003013,11]
[422055322,1778532641000,-500.0,0.00029999,2]
[422055338,1778532641000,-1000.0,0.0003013,11]
[422055349,1778532641000,-872.7,0.00030239,2]
[422055354,1778532641000,-504.4140847,0.00030521,5]
[422055345,1778532641000,-701.8131084,0.0003016,2]
[422055343,1778532641000,-200.0,0.00030137,2]
[422055342,1778532641000,-195.8,0.00030137,2]
[422055340,1778532641000,-1000.0,0.0003013,11]
[422055359,1778532641000,-155.0,0.00030523,30]
[422055348,1778532641000,-151.0,0.00030176,7]
[422055341,1778532641000,-1000.0,0.0003013,11]
[422055347,1778532641000,-151.0,0.00030176,7]
[422055344,1778532641000,-2067.0075186,0.0003016,2]
[422055346,1778532641000,-152.0,0.00030162,7]
[422055418,1778532642000,-152.0,0.0003229,5]
[422055422,1778532642000,-155.0,0.00032523,30]
[422055419,1778532642000,-507.0,0.00032341,10]
[422055407,1778532642000,-31769.67287774,0.00032,120]
[422055420,1778532642000,-1267.83,0.00032461,2]
[422055415,1778532642000,-1999.90921631,0.000322,15]
[422055416,1778532642000,-872.7,0.0003221,5]
[422055409,1778532642000,-151.0,0.00032,7]
[422055412,1778532642000,-151.0,0.00032,7]
[422055423,1778532642000,-157.73541846,0.00032523,30]
[422055417,1778532642000,-1079.78,0.00032288,2]
[422055424,1778532642000,-355.0,0.00032523,30]
[422055430,1778532642000,-1211.21138325,0.00032676,2]
[422055425,1778532642000,-906.0,0.00032523,30]
[422055427,1778532642000,-154.0,0.00032523,30]
[422055428,1778532642000,-151.0,0.00032523,30]
[422055426,1778532642000,-155.0,0.00032523,30]
[422055429,1778532642000,-150.0,0.00032636,2]
[422055433,1778532642000,-1079.79,0.00032788,2]
[422055431,1778532642000,-700.0,0.00032686,4]
[422055434,1778532642000,-435.52443023,0.0003287,2]
[422055432,1778532642000,-581.33,0.00032728,120]
[422055435,1778532642000,-1751.07885627,0.0003287,4]
[422055437,1778532642000,-158.657747,0.00032877,7]
[422055408,1778532642000,-20800.0,0.00032,120]
[422055421,1778532642000,-154.0,0.00032521,30]
[422055413,1778532642000,-151.0,0.00032,7]
[422055382,1778532642000,-156.78487912,0.000314,30]
[422055414,1778532642000,-200.0,0.00032055,2]
[422055447,1778532642000,-809.34,0.00032877,7]
[422055383,1778532642000,-150.0,0.00031428,2]
[422055388,1778532642000,-155.0,0.00031523,30]
[422055389,1778532642000,-157.0,0.00031523,30]
[422055387,1778532642000,-154.0,0.00031521,30]
[422055390,1778532642000,-355.0,0.00031523,30]
[422055385,1778532642000,-10000.0,0.00031463,7]
[422055386,1778532642000,-1000.0,0.000315,7]
[422055384,1778532642000,-20150.78637958,0.0003143,4]
[422055392,1778532642000,-155.0,0.00031523,30]
[422055391,1778532642000,-906.0,0.00031523,30]
[422055395,1778532642000,-151.0,0.00031523,30]
[422055410,1778532642000,-151.0,0.00032,7]
[422055393,1778532642000,-154.0,0.00031523,30]
[422055400,1778532642000,-72989.12675135,0.00031781,7]
[422055397,1778532642000,-2089.1825259,0.00031722,2]
[422055401,1778532642000,-500.0,0.00031881,2]
[422055396,1778532642000,-157.99275052,0.00031713,2]
[422055398,1778532642000,-167.549538,0.00031773,5]
[422055399,1778532642000,-500.0,0.00031774,60]
[422055404,1778532642000,-10000.0,0.00032,2]
[422055402,1778532642000,-198.90203311,0.000319,2]
[422055405,1778532642000,-300.0,0.00032,120]
[422055406,1778532642000,-344.74947379,0.00032,120]
[422055403,1778532642000,-426.3305532,0.00032,120]
[422055411,1778532642000,-151.0,0.00032,7]
[422055394,1778532642000,-163.50203509,0.00031523,30]
[422055436,1778532642000,-349.65,0.00032877,2]
[422055448,1778532642000,-819.06,0.00032877,7]
[422055438,1778532642000,-158.657747,0.00032877,7]
[422055475,1778532642000,-200.0,0.00033075,2]
[422055474,1778532642000,-200.0,0.00033075,2]
[422055465,1778532642000,-500.0,0.00033075,2]
[422055477,1778532642000,-200.0,0.00033075,2]
[422055487,1778532642000,-200.0,0.00033075,2]
[422055489,1778532642000,-200.0,0.00033075,2]
[422055478,1778532642000,-200.0,0.00033075,2]
[422055476,1778532642000,-200.0,0.00033075,2]
[422055479,1778532642000,-200.0,0.00033075,2]
[422055485,1778532642000,-152.0,0.00033075,2]
[422055481,1778532642000,-200.0,0.00033075,2]
[422055480,1778532642000,-200.0,0.00033075,2]
[422055473,1778532642000,-200.0,0.00033075,2]
[422055483,1778532642000,-200.0,0.00033075,2]
[422055484,1778532642000,-200.0,0.00033075,2]
[422055490,1778532642000,-200.0,0.00033075,2]
[422055491,1778532642000,-200.0,0.00033075,2]
[422055492,1778532642000,-200.0,0.00033075,2]
[422055493,1778532642000,-200.0,0.00033075,2]